bitfinex-derivatives/quotes_BNBF0:USTF0_20250529
["timestamp","ask_amount","ask_price","bid_price","bid_amount"]
[1748486016010,0.28825089,693.84,689.55,1.04037068]
[1748486016207,0.28825089,693.84,689.48,0.616]
[1748486016414,0.28825089,693.84,689.49,1.61781105]
[1748486016715,0.28825089,693.84,689.5,1.61780158]
[1748486016909,0.28825089,693.84,689.51,0.57660606]
[1748486017109,0.28825089,693.84,689.52,1.61766456]
[1748486017313,0.28825089,693.84,689.53,1.61762466]
[1748486017515,0.28825089,693.84,689.48,0.616]
[1748486017516,0.28825089,693.84,689.54,1.0410585]
[1748486017710,0.28825089,693.84,689.55,1.0410585]
[1748486017915,0.28825089,693.84,689.56,1.0410585]
[1748486018109,0.28825089,693.84,689.57,1.0410585]
[1748486018311,0.28825089,693.84,689.58,1.0410585]
[1748486018614,0.28825089,693.84,689.59,1.0410585]
[1748486018810,0.28825089,693.84,689.6,1.0410585]
[1748486019011,0.28825089,693.84,689.61,1.0410585]
[1748486019216,0.28825089,693.84,689.48,0.616]
[1748486019217,0.28825089,693.84,689.62,1.0410585]
[1748486019516,0.28825089,693.84,689.63,1.04089933]
[1748486019716,0.28825089,693.84,689.48,0.616]
[1748486019924,0.28825089,693.84,689.49,1.61745233]
[1748486020218,0.28825089,693.84,689.5,1.61745233]
[1748486020417,0.28825089,693.84,689.51,1.61754044]
[1748486020618,0.28825089,693.84,689.52,1.61754044]
[1748486020813,0.28825089,693.84,689.53,1.04085297]
[1748486021118,0.28825089,693.84,689.54,1.04085297]
[1748486021313,0.28825089,693.84,689.55,1.04089056]
[1748486021512,0.28825089,693.84,689.56,1.04089056]
[1748486021718,0.28825089,693.84,689.57,1.04089056]
[1748486021916,0.28825089,693.84,689.58,1.04089056]
[1748486022119,0.28825089,693.84,689.48,0.616]
[1748486023220,0.28825089,693.84,689.49,1.61737707]
[1748486023521,0.28825089,693.84,689.5,1.61737707]
[1748486023721,0.28825089,693.84,689.51,1.61737707]
[1748486023919,0.28825089,693.84,689.52,1.61737707]
[1748486024115,0.28825089,693.84,689.53,1.04074472]
[1748486024316,0.28825089,693.84,689.54,1.04074472]
[1748486024619,0.28825089,693.84,689.55,1.04069629]
[1748486024820,0.28825089,693.84,689.56,1.04069627]
[1748486025015,0.28825089,693.84,689.57,1.04069627]
[1748486025218,0.28825089,693.84,689.58,1.04069627]
[1748486025418,0.28825089,693.84,689.59,1.04066446]
[1748486025615,0.28825089,693.84,689.6,1.04066446]
[1748486025818,0.28825089,693.84,689.61,1.04066446]
[1748486026120,0.28825089,693.84,689.62,1.04066446]
[1748486026323,0.28825089,693.84,689.48,0.616]
[1748486026815,0.28825089,693.84,689.49,0.57644551]
[1748486027013,0.28825089,693.84,689.48,0.616]
[1748486027418,0.28825089,693.84,689.49,0.57642505]
[1748486027721,0.28825089,693.84,689.48,0.616]
[1748486027923,0.28825089,693.84,689.49,1.04054582]
[1748486028218,0.28825089,693.84,689.5,1.61689895]
[1748486028418,0.28825089,693.84,689.48,0.616]
[1748486028718,0.28825089,693.84,689.49,1.61688501]
[1748486028922,0.28825089,693.84,689.5,1.61688783]
[1748486029122,0.28825089,693.84,689.51,1.61687811]
[1748486029319,0.28825089,693.84,689.52,1.61698704]
[1748486029523,0.28825089,693.84,689.53,1.04062794]
[1748486029722,0.28825089,693.84,689.54,1.04062794]
[1748486029919,0.28825089,693.84,689.55,1.04062794]
[1748486030123,0.28825089,693.84,689.56,1.04062794]
[1748486030419,0.28825089,693.84,689.57,1.04063137]
[1748486030618,0.28825089,693.84,689.58,1.04063137]
[1748486030818,0.28825089,693.84,689.59,1.04063137]
[1748486031018,0.28825089,693.84,689.6,1.04063137]
[1748486031222,0.28825089,693.84,689.61,1.03993071]
[1748486031424,0.28825089,693.84,689.48,0.616]
[1748486031725,0.94041626,693.62,689.49,1.61615019]
[1748486031922,0.94041626,693.62,689.48,0.616]
[1748486031923,0.28842548,693.42,689.5,1.61615144]
[1748486032120,0.28842548,693.42,689.51,1.61615144]
[1748486032319,0.28842548,693.42,689.52,1.03987279]
[1748486032521,0.28842548,693.42,689.53,1.03987279]
[1748486032825,0.28842548,693.42,689.48,0.616]
[1748486033525,0.28842548,693.42,689.49,1.04011055]
[1748486033725,0.28842548,693.42,689.5,1.04010912]
[1748486033925,0.28842548,693.42,689.48,0.616]
[1748486034726,0.28842548,693.42,689.49,0.57653586]
[1748486034923,0.28842548,693.42,689.49,1.04028778]
[1748486035121,0.28842548,693.42,689.5,1.04064093]
[1748486035323,0.28842548,693.42,689.51,1.04078488]
[1748486035526,0.28842548,693.42,689.52,1.04037636]
[1748486035727,0.28842548,693.42,689.53,1.04037163]
[1748486035927,0.28842548,693.42,689.54,1.04037163]
[1748486036225,0.28842548,693.42,689.48,0.616]
[1748486036226,0.28842548,693.42,689.55,1.04037163]
[1748486036428,0.28842548,693.42,689.56,1.04037163]
[1748486036623,0.28842548,693.42,689.48,0.616]
[1748486036823,0.28842548,693.42,689.49,1.04075429]
[1748486037021,0.28842548,693.42,689.5,1.04075429]
[1748486037227,0.28842548,693.42,689.48,0.616]
[1748486037428,0.28842548,693.42,689.49,1.04103667]
[1748486037628,0.28842548,693.42,689.49,0.665]
[1748486047638,0.28842548,693.42,689.5,1.04163156]
[1748486047836,0.28842548,693.42,689.49,0.665]
[1748486047837,0.28842548,693.42,689.51,1.04163131]
[1748486048137,0.28842548,693.42,689.49,0.665]
[1748486048338,0.28842548,693.42,689.5,1.04155308]
[1748486048634,0.28842548,693.42,689.49,0.665]
[1748486049238,0.28842548,693.42,689.5,1.04179447]
[1748486049534,0.28842548,693.42,689.49,0.665]
[1748486049739,0.28842548,693.42,689.5,1.04179089]
[1748486049940,0.28842548,693.42,689.49,0.665]
[1748486050139,0.28842548,693.42,689.5,1.04179091]
[1748486050439,0.28842548,693.42,689.49,0.665]
[1748486050939,0.28842548,693.42,689.5,1.0415787]
[1748486051138,0.28842548,693.42,689.49,0.665]
[1748486051340,0.28842548,693.42,689.5,1.04158794]
[1748486051535,0.28842548,693.42,689.49,0.665]
[1748486051738,0.28842548,693.42,689.5,1.04158767]
[1748486051944,0.28842548,693.42,689.49,0.665]
[1748486052135,0.28842548,693.42,689.5,1.04151257]
[1748486052336,0.28842548,693.42,689.49,0.665]
[1748486052545,0.28842548,693.42,689.5,1.04151257]
[1748486052839,0.28842548,693.42,689.49,0.665]
[1748486053037,0.28842548,693.42,689.5,1.04140444]
[1748486053240,0.28842548,693.42,689.49,0.665]
[1748486053437,0.28842548,693.42,689.5,1.04141912]
[1748486053637,0.28842548,693.42,688.61,0.45994457]
[1748486053838,0.28842548,693.42,688.63,0.45994457]
[1748486054039,0.28842548,693.42,688.64,1.61865028]
[1748486054237,0.28842548,693.42,688.65,1.61860077]
[1748486054444,0.28842548,693.42,688.66,1.61935631]
[1748486054642,0.28842548,693.42,688.67,1.61935097]
[1748486054836,0.28842548,693.42,688.63,0.45994457]
[1748486055037,0.28842548,693.42,688.64,1.61922078]
[1748486055238,0.28842548,693.42,688.65,1.61922078]
[1748486055437,0.28842548,693.42,688.66,1.61922078]
[1748486055743,0.28842548,693.42,688.67,1.61922078]
[1748486056043,0.28842548,693.42,688.68,2.79073531]
[1748486056237,0.28842548,693.42,688.69,1.04258712]
[1748486056440,0.28842548,693.42,688.7,1.61967162]
[1748486056639,0.94041626,694.15,688.76,0.45994457]
[1748486056839,0.94041626,694.15,688.77,1.61967924]
[1748486057039,0.94041626,694.15,688.76,0.45994457]
[1748486057040,0.94041626,693.56,688.78,1.61967924]
[1748486057238,0.94041626,693.56,688.79,1.61967924]
[1748486057444,0.94041626,693.56,688.8,1.04253154]
[1748486057637,0.94041626,693.56,688.81,1.61957943]
[1748486057843,0.94041626,693.56,688.82,1.61957943]
[1748486058042,0.94041626,693.56,688.83,1.61945181]
[1748486058244,0.94041626,693.56,688.84,1.61942431]
[1748486058544,0.94041626,693.56,688.76,0.45994457]
[1748486058743,0.94041626,693.56,688.77,1.61937134]
[1748486058939,0.94041626,693.56,688.78,1.61937134]
[1748486059141,0.94041626,693.62,688.79,1.61937134]
[1748486059451,0.94041626,693.62,688.8,1.61937134]
[1748486059643,0.94041626,693.61,688.81,1.61937134]
[1748486059842,0.94041626,693.61,688.82,1.61937134]
[1748486060040,0.94041626,693.64,688.83,1.62012616]
[1748486060245,0.25171062,694.55,688.84,1.61975398]
[1748486060442,0.25171062,694.55,688.85,1.61975398]
[1748486060646,0.94041626,694.4,688.7,0.57708052]
[1748486060846,0.25171062,694.55,688.7,0.57708052]
[1748486081263,0.94041626,694.34,688.7,0.57708052]
[1748486081661,0.94041626,693.99,688.7,0.57708052]
[1748486081861,0.28829659,693.73,688.7,0.57708052]
[1748486095490,0.28829659,693.73,688.71,0.722]
[1748486097677,0.94041626,693.08,688.71,0.722]
[1748486097878,0.28865443,692.87,688.71,0.722]
[1748486104483,0.94041626,692.61,688.71,0.722]
[1748486104676,0.28884203,692.42,688.71,0.722]
[1748486110388,0.28884203,692.42,688.7,0.57708052]
[1748486112291,0.28884203,692.42,688.71,0.739]
[1748486113787,0.28884203,692.42,688.72,0.687]
[1748486125501,0.28884203,692.42,688.73,0.717]
[1748486135213,0.28884203,692.42,688.74,0.614]
[1748486142125,0.25209901,691.51,688.74,0.614]
[1748486142319,0.28927651,691.38,688.74,0.614]
[1748486154136,0.28927651,691.38,688.75,0.805]
[1748486157835,0.28927651,691.38,688.76,0.56175943]
[1748486158035,0.28927651,691.38,688.77,0.56175943]
[1748486158230,0.28927651,691.38,688.75,0.805]
[1748486158231,0.28927651,691.38,688.78,0.56175943]
[1748486158435,0.28927651,691.38,688.79,0.56167073]
[1748486158636,0.28927651,691.38,688.8,0.56166995]
[1748486158835,0.28927651,691.38,688.81,0.56166995]
[1748486159036,0.28927651,691.38,688.75,0.805]
[1748486159238,0.28927651,691.38,688.76,0.5616715]
[1748486159435,0.28927651,691.38,688.77,0.5616715]
[1748486159636,0.28927651,691.38,688.78,0.5616715]
[1748486159840,0.28927651,691.38,688.79,0.5616715]
[1748486160044,0.28927651,691.38,688.8,0.5616715]
[1748486160336,0.28927651,691.38,688.81,0.5616715]
[1748486160541,0.28927651,691.38,688.75,0.805]
[1748486160740,0.28927651,691.38,688.76,0.56161615]
[1748486161051,0.28927651,691.38,688.77,0.56160519]
[1748486161245,0.28927651,691.38,688.78,0.56160519]
[1748486161438,0.28927651,691.38,688.79,0.56160519]
[1748486161641,0.28927651,691.38,688.8,0.56160519]
[1748486161837,0.28927651,691.38,688.81,0.56139344]
[1748486162041,0.28927651,691.38,688.82,0.56139344]
[1748486162343,0.28927651,691.38,688.83,0.56139344]
[1748486162547,0.28927651,691.38,688.84,0.56139344]
[1748486162743,0.28927651,691.38,688.85,0.56139344]
[1748486163044,0.28927651,691.38,688.86,0.56139344]
[1748486163242,0.28927651,691.38,688.87,0.56139344]
[1748486163442,0.28927651,691.38,688.88,0.56139344]
[1748486163642,0.28927651,691.38,688.75,0.805]
[1748486163843,0.28927651,691.38,688.76,0.56100747]
[1748486164154,0.28927651,691.38,688.77,0.56100747]
[1748486164337,0.28927651,691.38,688.78,0.56100747]
[1748486164543,0.28927651,691.38,688.79,0.56104431]
[1748486164740,0.28927651,691.38,688.8,0.56104431]
[1748486164942,0.28927651,691.38,688.81,0.56104431]
[1748486165141,0.28927651,691.38,688.82,0.56104431]
[1748486165339,0.28927651,691.38,688.83,0.56104431]
[1748486165542,0.28927651,691.38,688.75,0.805]
[1748486165742,0.28927651,691.38,688.76,0.5610509]
[1748486165946,0.28927651,691.38,688.77,0.5610509]
[1748486166149,0.28927651,691.38,688.75,0.805]
[1748486166150,0.28927651,691.38,688.78,0.5610509]
[1748486166351,0.28927651,691.38,688.79,0.5610509]
[1748486166550,0.28927651,691.38,688.8,0.5610509]
[1748486166745,0.28927651,691.38,688.75,0.805]
[1748486166948,0.28927651,691.38,688.76,0.56099441]
[1748486167149,0.28927651,691.38,688.77,0.56099441]
[1748486167452,0.28927651,691.38,688.78,0.56099441]
[1748486167751,0.28927651,691.38,688.79,0.56098964]
[1748486167949,0.28927651,691.38,688.75,0.805]
[1748486167950,0.28927651,691.38,688.8,0.56098964]
[1748486168150,0.28927651,691.38,688.81,0.56097662]
[1748486168346,0.28927651,691.38,688.82,0.56097662]
[1748486168650,0.28927651,691.38,688.83,0.56096565]
[1748486168945,0.28927651,691.38,688.84,0.56096565]
[1748486169151,0.28927651,691.38,688.75,0.805]
[1748486169349,0.28927651,691.38,688.76,0.56096565]
[1748486169552,0.28927651,691.38,688.77,0.56096565]
[1748486169747,0.28927651,691.38,688.78,0.56096565]
[1748486169951,0.28927651,691.38,688.79,0.56095765]
[1748486170152,0.28927651,691.38,688.74,0.614]
[1748486170153,0.28927651,691.38,688.8,0.56095765]
[1748486170447,0.28927651,691.38,688.81,0.56095046]
[1748486170654,0.28927651,691.38,688.82,0.56095046]
[1748486170852,0.28927651,691.38,688.74,0.614]
[1748486171354,0.28927651,691.38,688.75,0.561]
[1748486178963,0.28927651,691.38,688.76,0.56127684]
[1748486179161,0.28927651,691.38,688.77,0.56127684]
[1748486179370,0.28927651,691.38,688.78,0.56124429]
[1748486179562,0.28927651,691.38,688.79,0.56124429]
[1748486179765,0.28927651,691.38,688.75,0.561]
[1748486179766,0.28927651,691.38,688.8,0.56124429]
[1748486180065,0.28927651,691.38,688.81,0.56124429]
[1748486180362,0.28927651,691.38,688.82,0.56124429]
[1748486180559,0.28927651,691.38,688.75,0.561]
[1748486180761,0.28927651,691.38,688.76,0.56107902]
[1748486180958,0.28927651,691.38,688.77,0.56107902]
[1748486181157,0.28927651,691.38,688.75,0.561]
[1748486181357,0.28927651,691.38,688.76,0.5611905]
[1748486181558,0.28927651,691.38,688.77,0.5611905]
[1748486181860,0.28927651,691.38,688.75,0.561]
[1748486182062,0.28927651,691.38,688.76,0.56108524]
[1748486182863,0.28927651,691.38,688.77,0.56114897]
[1748486183064,0.28927651,691.38,688.78,0.56114897]
[1748486183264,0.28927651,691.38,688.79,0.56114897]
[1748486183565,0.28927651,691.38,688.75,0.561]
[1748486183566,0.28927651,691.38,688.8,0.56130876]
[1748486183758,0.28927651,691.38,688.81,0.56130876]
[1748486183962,0.28927651,691.38,688.75,0.561]
[1748486184163,0.28927651,691.38,688.76,0.56130239]
[1748486184465,0.28927651,691.38,688.77,0.56137233]
[1748486184665,0.28927651,691.38,688.78,0.56137054]
[1748486184866,0.28927651,691.38,688.79,0.56137054]
[1748486185067,0.25258207,690.74,688.8,0.56137054]
[1748486185261,0.28955293,690.72,688.81,0.56137054]
[1748486185461,0.28955293,690.72,688.82,0.56144418]
[1748486185663,0.28955293,690.72,688.83,0.56144418]
[1748486185867,0.28955293,690.72,688.75,0.561]
[1748486186067,0.28955293,690.72,688.76,0.56144216]
[1748486186264,0.28955293,690.72,688.77,0.56152853]
[1748486186460,0.28955293,690.72,688.75,0.561]
[1748486186670,0.28955293,690.72,688.76,0.56153083]
[1748486186869,0.28955293,690.72,688.77,0.56153071]
[1748486187071,0.28955293,690.72,688.78,0.56153093]
[1748486187268,0.28955293,690.72,688.79,0.56153093]
[1748486187474,0.28955293,690.72,688.8,0.56153093]
[1748486187668,0.28955293,690.72,688.81,0.56153093]
[1748486187969,0.28955293,690.72,688.75,0.561]
[1748486187970,0.28955293,690.72,688.82,0.56162514]
[1748486188273,0.28955293,690.72,688.75,0.561]
[1748486188469,0.28955293,690.72,688.76,0.56171373]
[1748486188770,0.28955293,690.72,688.77,0.56171373]
[1748486188967,0.28955293,690.72,688.78,0.56171373]
[1748486189272,0.28955293,690.72,688.79,0.56171373]
[1748486189475,0.28955293,690.72,688.8,0.56188367]
[1748486189671,0.28955293,690.72,688.81,0.56187375]
[1748486189964,0.28955293,690.72,688.82,0.56187375]
[1748486190268,0.28955293,690.72,688.75,0.561]
[1748486190465,0.28955293,690.72,688.76,0.56200509]
[1748486190666,0.28955293,690.72,688.77,0.56200509]
[1748486190865,0.28955293,690.72,688.75,0.561]
[1748486190866,0.28955293,690.72,688.78,0.56200509]
[1748486191073,0.28955293,690.72,688.79,0.56200509]
[1748486191374,0.28955293,690.72,688.8,0.56200509]
[1748486191672,0.28955293,690.72,688.81,0.56200509]
[1748486191969,0.28955293,690.72,688.82,0.56200509]
[1748486192174,0.28955293,690.72,688.83,0.56225858]
[1748486192371,0.28955293,690.72,688.84,0.56225858]
[1748486192572,0.28955293,690.72,683.24,0.72081916]
[1748486192573,0.28955293,690.72,688.08,0.45994457]
[1748486192872,0.28955293,690.72,688.09,0.5623928]
[1748486193073,0.28955293,690.72,688.1,0.5623928]
[1748486193273,0.28955293,690.72,688.11,0.5623928]
[1748486193474,0.28955293,690.72,688.12,0.5623928]
[1748486193668,0.28955293,690.72,688.13,0.5625142]
[1748486193869,0.28955293,690.72,688.14,0.5625142]
[1748486194075,0.28955293,690.72,688.15,0.5625142]
[1748486194374,0.28955293,690.72,687.59,0.45994457]
[1748486194375,0.28955293,690.72,688.16,0.5625142]
[1748486194573,0.28955293,690.72,688.17,0.5625142]
[1748486194778,0.28955293,690.72,688.18,0.56263653]
[1748486195075,0.28955293,690.72,688.17,0.603]
[1748486195376,0.28955293,690.72,688.18,0.56263494]
[1748486195676,0.28955293,690.72,688.19,0.56263486]
[1748486195882,0.28955293,690.72,688.2,0.56263486]
[1748486196076,0.28955293,690.72,688.17,0.603]
[1748486196077,0.28955293,690.72,688.21,0.56263486]
[1748486196273,0.28955293,690.72,688.22,0.56263486]
[1748486196470,0.28955293,690.72,688.23,0.56267116]
[1748486196675,0.28955293,690.72,688.24,0.56267116]
[1748486196877,0.28955293,690.72,688.25,0.56267116]
[1748486197172,0.28955293,690.72,688.26,0.56267116]
[1748486197378,0.28955293,690.72,688.27,0.56269221]
[1748486197573,0.28955293,690.72,688.28,0.56269221]
[1748486197770,0.28955293,690.72,688.29,0.56269221]
[1748486197973,0.28955293,690.72,688.3,0.56269221]
[1748486198176,0.28955293,690.72,688.31,0.56268406]
[1748486198378,0.28955293,690.72,688.32,0.56268406]
[1748486198570,0.28955293,690.72,688.33,0.56268734]
[1748486198771,0.28955293,690.72,688.34,0.56264527]
[1748486199076,0.28955293,690.72,688.35,0.56264539]
[1748486199377,0.28955293,690.72,688.17,0.603]
[1748486199576,0.28955293,690.72,688.18,0.56262074]
[1748486199773,0.28955293,690.72,688.17,0.603]
[1748486199774,0.28955293,690.72,688.19,0.56262074]
[1748486199978,0.28955293,690.72,688.2,0.56262372]
[1748486200173,0.28955293,690.72,688.21,0.56262372]
[1748486200376,0.28955293,690.72,688.22,0.56262372]
[1748486200576,0.28955293,690.72,688.23,0.56263136]
[1748486200773,0.28955293,690.72,688.17,0.603]
[1748486201073,0.28955293,690.72,688.18,0.56259186]
[1748486201276,0.28955293,690.72,688.19,0.56259186]
[1748486201475,0.28955293,690.72,688.2,0.56259186]
[1748486201675,0.28955293,690.72,688.21,0.56259186]
[1748486201879,0.28955293,690.72,688.22,0.56259186]
[1748486202079,0.28955293,690.72,688.23,0.56259186]
[1748486202280,0.28955293,690.72,688.17,0.603]
[1748486202480,0.28955293,690.72,688.18,0.56122206]
[1748486202682,0.28955293,690.72,688.19,0.56123601]
[1748486202977,0.28955293,690.72,688.2,0.56123601]
[1748486203177,0.28955293,690.72,688.21,0.56123601]
[1748486203378,0.28955293,690.72,688.22,0.56104832]
[1748486203585,0.28955293,690.72,688.23,0.56104832]
[1748486203776,0.28955293,690.72,688.24,0.56104832]
[1748486203977,0.28955293,690.72,688.25,0.56104832]
[1748486204179,0.28955293,690.72,688.26,0.56092682]
[1748486204378,0.28955293,690.72,688.27,0.56092682]
[1748486204581,0.28955293,690.72,688.28,0.56092682]
[1748486204775,0.28955293,690.72,688.29,0.56092682]
[1748486204981,0.28955293,690.72,688.3,0.56076174]
[1748486205281,0.28955293,690.72,688.31,0.56076174]
[1748486205484,0.28955293,690.72,688.32,0.56076174]
[1748486205682,0.28955293,690.72,688.17,0.603]
[1748486205882,0.28955293,690.72,688.18,0.56062245]
[1748486206080,0.28955293,690.72,688.19,0.56062245]
[1748486206279,0.28955293,690.72,688.2,0.56062245]
[1748486206481,0.28955293,690.72,688.21,0.56062245]
[1748486206681,0.28955293,690.72,688.22,0.56062245]
[1748486206880,0.28955293,690.72,688.23,0.56062245]
[1748486207075,0.28955293,690.72,688.17,0.603]
[1748486207076,0.28955293,690.72,688.24,0.56062245]
[1748486207280,0.28955293,690.72,688.25,0.56062245]
[1748486207477,0.28955293,690.72,688.26,0.56062245]
[1748486207677,0.25258207,690.74,688.27,0.56046068]
[1748486207879,0.25258207,690.74,688.28,0.56046068]
[1748486208081,0.25258207,690.74,688.29,0.56046068]
[1748486208277,0.25258207,690.74,688.3,0.56046068]
[1748486208477,0.25258207,690.74,688.31,0.56046068]
[1748486208677,0.25258207,690.74,688.32,0.56046068]
[1748486208876,0.25258207,690.74,688.17,0.603]
[1748486208877,0.25258207,690.74,688.33,0.56046068]
[1748486209082,0.25258207,690.74,688.17,0.603]
[1748486209583,0.25258207,690.74,688.18,0.56033594]
[1748486209779,0.25258207,690.74,688.19,0.56033594]
[1748486209978,0.25258207,690.74,688.2,0.56033594]
[1748486210183,0.25258207,690.74,688.21,0.56033594]
[1748486210379,0.25258207,690.74,688.22,0.56033594]
[1748486210578,0.25258207,690.74,688.17,0.603]
[1748486210579,0.25258207,690.74,688.23,0.56033594]
[1748486210778,0.25258207,690.74,688.24,0.56019419]
[1748486210980,0.25258207,690.74,688.25,0.56009042]
[1748486211284,0.25258207,690.74,688.26,0.56009042]
[1748486211485,0.25258207,690.74,688.27,0.56009042]
[1748486211686,0.25258207,690.74,688.28,0.55999682]
[1748486211880,0.25258207,690.74,688.29,0.55999682]
[1748486212079,0.25258207,690.74,688.17,0.603]
[1748486212387,0.25258207,690.74,688.18,0.559961]
[1748486212587,0.25258207,690.74,688.19,0.5599839]
[1748486212785,0.25258207,690.74,688.2,0.5599839]
[1748486213088,0.25258207,690.74,688.21,0.55986362]
[1748486213382,0.25258207,690.74,688.22,0.55986362]
[1748486213581,0.25258207,690.74,688.17,0.603]
[1748486213981,0.25258207,690.74,688.18,0.55972285]
[1748486214182,0.25258207,690.74,688.19,0.55952521]
[1748486214384,0.25258207,690.74,688.2,0.55952521]
[1748486214584,0.25258207,690.74,688.21,0.55952521]
[1748486214785,0.25258207,690.74,688.22,0.55952521]
[1748486214980,0.25258207,690.74,688.17,0.603]
[1748486214981,0.25258207,690.74,688.23,0.55952521]
[1748486215184,0.25258207,690.74,688.24,0.55939837]
[1748486215386,0.25258207,690.74,688.25,0.55939837]
[1748486215584,0.25258207,690.74,688.17,0.603]
[1748486215790,0.25258207,690.74,688.18,0.55931983]
[1748486215992,0.25258207,690.74,688.19,0.55931983]
[1748486216190,0.25258207,690.74,688.2,0.55931983]
[1748486216389,0.25258207,690.74,688.21,0.55931983]
[1748486216691,0.25258207,690.74,688.22,0.55931983]
[1748486216886,0.25258207,690.74,688.23,0.55931983]
[1748486217084,0.25258207,690.74,688.17,0.603]
[1748486217289,0.25258207,690.74,688.18,0.55923029]
[1748486217487,0.25258207,690.74,688.19,0.55923029]
[1748486217791,0.25258207,690.74,688.2,0.55923029]
[1748486217993,0.25258207,690.74,688.21,0.55923029]
[1748486218197,0.25258207,690.74,688.22,0.55923029]
[1748486218395,0.25258207,690.74,688.23,0.55909739]
[1748486218591,0.25258207,690.74,688.24,0.55909739]
[1748486218794,0.25258207,690.74,688.25,0.55909739]
[1748486218989,0.25258207,690.74,688.26,0.55909739]
[1748486219193,0.25258207,690.74,688.27,0.55909739]
[1748486219395,0.25258207,690.74,688.28,0.55909739]
[1748486219594,0.25258207,690.74,688.29,0.55909739]
[1748486219795,0.25258207,690.74,688.3,0.55909739]
[1748486219993,0.25258207,690.74,688.31,0.55909739]
[1748486220201,0.25258207,690.74,688.32,0.55897096]
[1748486220395,0.25258207,690.74,688.33,0.55897096]
[1748486220596,0.25258207,690.74,688.34,0.55897108]
[1748486220795,0.25258207,690.74,688.35,0.55897108]
[1748486220992,0.25258207,690.74,688.36,0.55897196]
[1748486221195,0.25258207,690.74,688.37,0.55897196]
[1748486221393,0.25258207,690.74,688.38,0.55897196]
[1748486221596,0.25258207,690.74,688.39,0.55897196]
[1748486221792,0.25258207,690.74,688.4,0.55897196]
[1748486222098,0.25258207,690.74,688.41,0.55897196]
[1748486222299,0.25258207,690.74,688.42,0.55897196]
[1748486222493,0.25258207,690.74,688.43,0.55897196]
[1748486222696,0.25258207,690.74,688.44,0.55897196]
[1748486222892,0.25258207,690.74,688.17,0.603]
[1748486223295,0.25258207,690.74,688.18,0.55882849]
[1748486223503,0.25258207,690.74,688.19,0.55888851]
[1748486223707,0.25258207,690.74,688.2,0.55888851]
[1748486223904,0.25258207,690.74,688.17,0.603]
[1748486223905,0.25258207,690.74,688.21,0.55888851]
[1748486224100,0.25258207,690.74,688.22,0.55888851]
[1748486224293,0.25258207,690.74,688.23,0.55888851]
[1748486224497,0.25258207,690.74,688.24,0.55888851]
[1748486224694,0.25258207,690.74,688.25,0.55888851]
[1748486224897,0.25258207,690.74,688.26,0.55888851]
[1748486225092,0.25258207,690.74,688.27,0.55879361]
[1748486225294,0.25258207,690.74,688.17,0.603]
[1748486225496,0.25258207,690.74,688.18,0.55879144]
[1748486225694,0.25258207,690.74,688.19,0.55879144]
[1748486225897,0.25258207,690.74,688.2,0.55879144]
[1748486226095,0.25258207,690.74,688.21,0.55875863]
[1748486226295,0.25258207,690.74,688.17,0.603]
[1748486226496,0.25258207,690.74,688.18,0.55872691]
[1748486226699,0.25258207,690.74,688.19,0.55872691]
[1748486226898,0.25258207,690.74,688.17,0.603]
[1748486226899,0.25258207,690.74,688.2,0.55872691]
[1748486227098,0.25258207,690.74,688.21,0.55872691]
[1748486227299,0.25258207,690.74,688.17,0.603]
[1748486227300,0.25258207,690.74,688.22,0.55872691]
[1748486227595,0.25258207,690.74,688.23,0.55872691]
[1748486227895,0.25258207,690.74,688.24,0.55870654]
[1748486228101,0.25258207,690.74,688.25,0.55870654]
[1748486228295,0.25258207,690.74,688.26,0.55870654]
[1748486228495,0.25258207,690.74,688.17,0.603]
[1748486228799,0.25258207,690.74,688.18,0.55868986]
[1748486229099,0.25258207,690.74,688.19,0.55868986]
[1748486229299,0.25258207,690.74,688.2,0.55868986]
[1748486229599,0.25258207,690.74,688.21,0.55868986]
[1748486229795,0.25258207,690.74,688.22,0.55868986]
[1748486229999,0.25258207,690.74,688.23,0.55868986]
[1748486230199,0.25258207,690.74,688.17,0.603]
[1748486230502,0.25258207,690.74,688.18,0.55860047]
[1748486230697,0.25258207,690.74,688.19,0.55859365]
[1748486230997,0.25258207,690.74,688.2,0.55858637]
[1748486231201,0.25258207,690.74,688.21,0.55858637]
[1748486231400,0.25258207,690.74,688.22,0.55858637]
[1748486231601,0.25258207,690.74,688.23,0.55861638]
[1748486231797,0.25258207,690.74,688.24,0.55861638]
[1748486232104,0.25258207,690.74,688.17,0.603]
[1748486232105,0.28959485,690.62,688.17,0.603]
[1748486232302,0.28959485,690.62,688.18,0.55858251]
[1748486232502,0.28959485,690.62,688.19,0.55858251]
[1748486232797,0.28959485,690.62,688.2,0.55858251]
[1748486233002,0.28959485,690.62,688.21,0.55858251]
[1748486233302,0.28959485,690.62,688.22,0.55861789]
[1748486233502,0.28959485,690.62,688.23,0.55857256]
[1748486233796,0.28959485,690.62,688.24,0.55856291]
[1748486234003,0.28959485,690.62,688.25,0.55856291]